[Event "Live Chess"]
[Site "Chess.com"]
[Date "2011.01.16"]
[Round "-"]
[White "ryan_roswell"]
[Black "hipposcottimus"]
[Result "1-0"]
[CurrentPosition "r4k2/ppp1b2p/3pBp2/8/4P3/2N2P2/PPP2P1P/R3K2R b KQ -"]
[Timezone "UTC"]
[ECO "C22"]
[ECOUrl "https://www.chess.com/openings/Center-Game-Accepted-Hall-Variation"]
[UTCDate "2011.01.16"]
[UTCTime "22:28:44"]
[WhiteElo "1277"]
[BlackElo "1377"]
[TimeControl "600"]
[Termination "ryan_roswell won - game abandoned"]
[StartTime "22:28:44"]
[EndDate "2011.01.16"]
[EndTime "22:35:12"]
[Link "https://www.chess.com/game/live/88300015"]

1. e4 {[%clk 0:10:00]} 1... e5 {[%clk 0:10:00]} 2. d4 {[%clk 0:09:57.1]} 2... exd4 {[%clk 0:09:55.2]} 3. Qxd4 {[%clk 0:09:55.6]} 3... Nc6 {[%clk 0:09:48.1]} 4. Qc4 {[%clk 0:09:50.3]} 4... Ne5 {[%clk 0:09:40.9]} 5. Qd4 {[%clk 0:09:37.4]} 5... d6 {[%clk 0:09:28.4]} 6. Bf4 {[%clk 0:09:33.2]} 6... Nc6 {[%clk 0:09:21.6]} 7. Qd2 {[%clk 0:09:22.5]} 7... Be7 {[%clk 0:09:10.8]} 8. Nf3 {[%clk 0:09:13.1]} 8... f6 {[%clk 0:08:56.4]} 9. Bc4 {[%clk 0:09:06.3]} 9... Ne5 {[%clk 0:08:33]} 10. Bb3 {[%clk 0:08:30]} 10... Nxf3+ {[%clk 0:08:26.9]} 11. gxf3 {[%clk 0:08:28.2]} 11... Bd7 {[%clk 0:08:13.5]} 12. Qd5 {[%clk 0:08:26]} 12... Nh6 {[%clk 0:07:09.3]} 13. Bxh6 {[%clk 0:08:24]} 13... Rf8 {[%clk 0:06:50.8]} 14. Bxg7 {[%clk 0:08:09.7]} 14... Be6 {[%clk 0:06:45.7]} 15. Qxe6 {[%clk 0:08:00.2]} 15... Qd7 {[%clk 0:06:44.8]} 16. Bxf8 {[%clk 0:07:19.8]} 16... Qxe6 {[%clk 0:06:37.6]} 17. Bxe6 {[%clk 0:07:16.2]} 17... Kxf8 {[%clk 0:06:27.7]} 18. Nc3 {[%clk 0:07:13.6]} 1-0

[Event "Live Chess"]
[Site "Chess.com"]
[Date "2011.01.16"]
[Round "-"]
[White "wayunderpar"]
[Black "hipposcottimus"]
[Result "0-1"]
[CurrentPosition "r5k1/1p1n2pp/2n5/7N/p3P3/2P5/PBP3PP/5q1K w - -"]
[Timezone "UTC"]
[ECO "A00"]
[ECOUrl "https://www.chess.com/openings/Vant-Kruijs-Opening-1...e5"]
[UTCDate "2011.01.16"]
[UTCTime "22:14:29"]
[WhiteElo "1060"]
[BlackElo "1387"]
[TimeControl "600"]
[Termination "hipposcottimus won by checkmate"]
[StartTime "22:14:29"]
[EndDate "2011.01.16"]
[EndTime "22:25:04"]
[Link "https://www.chess.com/game/live/88297137"]

1. e3 {[%clk 0:10:00]} 1... e5 {[%clk 0:10:00]} 2. Nf3 {[%clk 0:09:56.6]} 2... e4 {[%clk 0:09:57.6]} 3. Nd4 {[%clk 0:09:48.2]} 3... c5 {[%clk 0:09:50.4]} 4. Nb3 {[%clk 0:09:42.7]} 4... d5 {[%clk 0:09:46.1]} 5. d4 {[%clk 0:09:22.4]} 5... a5 {[%clk 0:08:12.3]} 6. dxc5 {[%clk 0:09:05.4]} 6... a4 {[%clk 0:08:04.6]} 7. N3d2 {[%clk 0:08:59.8]} 7... Bxc5 {[%clk 0:07:39.5]} 8. Bb5+ {[%clk 0:08:29.9]} 8... Bd7 {[%clk 0:07:14.7]} 9. Bxd7+ {[%clk 0:08:27.1]} 9... Qxd7 {[%clk 0:07:12.9]} 10. Nf1 {[%clk 0:07:51]} 10... f5 {[%clk 0:07:06.4]} 11. Nc3 {[%clk 0:07:34.8]} 11... Nf6 {[%clk 0:06:58.9]} 12. Ng3 {[%clk 0:07:18.6]} 12... O-O {[%clk 0:06:18.7]} 13. O-O {[%clk 0:06:46.7]} 13... Nc6 {[%clk 0:06:11.5]} 14. f3 {[%clk 0:06:23.8]} 14... d4 {[%clk 0:06:10.1]} 15. fxe4 {[%clk 0:05:56]} 15... dxc3 {[%clk 0:06:06]} 16. Qxd7 {[%clk 0:05:43.6]} 16... Nxd7 {[%clk 0:06:03.2]} 17. bxc3 {[%clk 0:05:38.5]} 17... f4 {[%clk 0:05:53.9]} 18. Nh5 {[%clk 0:05:13.9]} 18... fxe3 {[%clk 0:05:44.1]} 19. Bb2 {[%clk 0:04:50.3]} 19... e2+ {[%clk 0:05:39.4]} 20. Rf2 {[%clk 0:04:37.9]} 20... Bxf2+ {[%clk 0:05:35.9]} 21. Kh1 {[%clk 0:04:23.7]} 21... Be1 {[%clk 0:05:29.7]} 22. Rxe1 {[%clk 0:04:19.4]} 22... Rf1+ {[%clk 0:05:26.4]} 23. Rxf1 {[%clk 0:04:14.4]} 23... exf1=Q# {[%clk 0:05:23]} 0-1

[Event "Live Chess"]
[Site "Chess.com"]
[Date "2011.01.16"]
[Round "-"]
[White "Rook77"]
[Black "hipposcottimus"]
[Result "0-1"]
[CurrentPosition "r1b2rk1/ppp2ppp/3b4/6N1/2BQ4/P3B3/1PP2PPq/R4RK1 w - -"]
[Timezone "UTC"]
[ECO "C47"]
[ECOUrl "https://www.chess.com/openings/Four-Knights-Game-Gunsberg-Variation-4...d5"]
[UTCDate "2011.01.16"]
[UTCTime "22:10:24"]
[WhiteElo "1213"]
[BlackElo "1385"]
[TimeControl "600"]
[Termination "hipposcottimus won by checkmate"]
[StartTime "22:10:24"]
[EndDate "2011.01.16"]
[EndTime "22:13:48"]
[Link "https://www.chess.com/game/live/88296103"]

1. e4 {[%clk 0:10:00]} 1... e5 {[%clk 0:10:00]} 2. Nf3 {[%clk 0:09:57.1]} 2... Nc6 {[%clk 0:09:47.9]} 3. Nc3 {[%clk 0:09:51.7]} 3... Nf6 {[%clk 0:09:35.2]} 4. a3 {[%clk 0:09:49.1]} 4... d5 {[%clk 0:09:31.4]} 5. exd5 {[%clk 0:09:47]} 5... e4 {[%clk 0:09:10.9]} 6. Ng5 {[%clk 0:09:43.3]} 6... Nxd5 {[%clk 0:09:06.8]} 7. Nxd5 {[%clk 0:09:41]} 7... Qxd5 {[%clk 0:08:56.6]} 8. d3 {[%clk 0:09:37.7]} 8... e3 {[%clk 0:08:17.8]} 9. Bxe3 {[%clk 0:09:31.9]} 9... Qe5 {[%clk 0:08:14.6]} 10. d4 {[%clk 0:09:24.1]} 10... Nxd4 {[%clk 0:08:05.3]} 11. Qxd4 {[%clk 0:09:20.1]} 11... Bd6 {[%clk 0:07:59.4]} 12. Bc4 {[%clk 0:08:58]} 12... O-O {[%clk 0:07:55.8]} 13. O-O {[%clk 0:08:49.4]} 13... Qxh2# {[%clk 0:07:53.1]} 0-1

[Event "Live Chess"]
[Site "Chess.com"]
[Date "2011.01.16"]
[Round "-"]
[White "hipposcottimus"]
[Black "JusGeode"]
[Result "1-0"]
[CurrentPosition "8/2p3p1/2Q5/p2P4/3kR3/2N5/PPP3PP/6K1 b - -"]
[Timezone "UTC"]
[ECO "A06"]
[ECOUrl "https://www.chess.com/openings/Reti-Opening-Tennison-Gambit"]
[UTCDate "2011.01.16"]
[UTCTime "22:03:44"]
[WhiteElo "1616"]
[BlackElo "1803"]
[TimeControl "60"]
[Termination "hipposcottimus won by checkmate"]
[StartTime "22:03:44"]
[EndDate "2011.01.16"]
[EndTime "22:05:25"]
[Link "https://www.chess.com/game/live/88294458"]

1. e4 {[%clk 0:01:00]} 1... d5 {[%clk 0:01:00]} 2. Nf3 {[%clk 0:00:59.6]} 2... dxe4 {[%clk 0:00:59.1]} 3. Ng5 {[%clk 0:00:59.4]} 3... e3 {[%clk 0:00:58.2]} 4. fxe3 {[%clk 0:00:56.3]} 4... f6 {[%clk 0:00:56.3]} 5. Nf3 {[%clk 0:00:56]} 5... e5 {[%clk 0:00:55.4]} 6. Be2 {[%clk 0:00:55.7]} 6... Nh6 {[%clk 0:00:55.3]} 7. d3 {[%clk 0:00:55.2]} 7... Nf5 {[%clk 0:00:55.2]} 8. Nc3 {[%clk 0:00:54.9]} 8... Nd6 {[%clk 0:00:54.2]} 9. O-O {[%clk 0:00:53.6]} 9... Be7 {[%clk 0:00:54.1]} 10. e4 {[%clk 0:00:53.2]} 10... O-O {[%clk 0:00:54]} 11. d4 {[%clk 0:00:52.9]} 11... Be6 {[%clk 0:00:53.6]} 12. d5 {[%clk 0:00:51.7]} 12... Bf7 {[%clk 0:00:52.2]} 13. Nd2 {[%clk 0:00:50.8]} 13... Qd7 {[%clk 0:00:52.1]} 14. Rf3 {[%clk 0:00:50.1]} 14... Bg6 {[%clk 0:00:51.7]} 15. Nf1 {[%clk 0:00:49.3]} 15... Qg4 {[%clk 0:00:51.3]} 16. Rg3 {[%clk 0:00:48.1]} 16... Qg5 {[%clk 0:00:49.7]} 17. Rxg5 {[%clk 0:00:45.4]} 17... fxg5 {[%clk 0:00:49.6]} 18. Bh5 {[%clk 0:00:44.2]} 18... Nc6 {[%clk 0:00:49.5]} 19. Bxg6 {[%clk 0:00:43.1]} 19... hxg6 {[%clk 0:00:49.1]} 20. Ng3 {[%clk 0:00:42.8]} 20... Nd4 {[%clk 0:00:47.7]} 21. Be3 {[%clk 0:00:40.9]} 21... Rf4 {[%clk 0:00:43.4]} 22. Bxd4 {[%clk 0:00:39.8]} 22... Rxe4 {[%clk 0:00:41.5]} 23. Ncxe4 {[%clk 0:00:36.1]} 23... Nxe4 {[%clk 0:00:41.4]} 24. Bxe5 {[%clk 0:00:34.5]} 24... Bf6 {[%clk 0:00:41.3]} 25. Bxf6 {[%clk 0:00:33.4]} 25... Nxf6 {[%clk 0:00:40.8]} 26. Ne2 {[%clk 0:00:32.6]} 26... Re8 {[%clk 0:00:40]} 27. Nc3 {[%clk 0:00:31.9]} 27... Ng4 {[%clk 0:00:39.4]} 28. Qxg4 {[%clk 0:00:30.8]} 28... Kf7 {[%clk 0:00:37.6]} 29. Qd7+ {[%clk 0:00:30.1]} 29... Re7 {[%clk 0:00:36.5]} 30. Qg4 {[%clk 0:00:24.9]} 30... Kf6 {[%clk 0:00:35.2]} 31. Rf1+ {[%clk 0:00:24.6]} 31... Ke5 {[%clk 0:00:33.4]} 32. Qxg5+ {[%clk 0:00:23.3]} 32... Kd6 {[%clk 0:00:32.6]} 33. Qxg6+ {[%clk 0:00:22.2]} 33... Kc5 {[%clk 0:00:32.5]} 34. Qd3 {[%clk 0:00:19.7]} 34... b5 {[%clk 0:00:30.9]} 35. Qxb5+ {[%clk 0:00:19]} 35... Kd6 {[%clk 0:00:29.9]} 36. Qc6+ {[%clk 0:00:18.6]} 36... Ke5 {[%clk 0:00:28.6]} 37. Re1+ {[%clk 0:00:14.9]} 37... Kd4 {[%clk 0:00:27.7]} 38. Rxe7 {[%clk 0:00:14.5]} 38... a5 {[%clk 0:00:24.5]} 39. Re4# {[%clk 0:00:14.1]} 1-0

[Event "Live Chess"]
[Site "Chess.com"]
[Date "2011.01.16"]
[Round "-"]
[White "ahmed122"]
[Black "hipposcottimus"]
[Result "0-1"]
[CurrentPosition "2r3k1/pp3ppp/5n2/2bp4/Q7/1BNP1b1P/PPP2q2/R1B4K w - -"]
[Timezone "UTC"]
[ECO "C60"]
[ECOUrl "https://www.chess.com/openings/Ruy-Lopez-Opening"]
[UTCDate "2011.01.16"]
[UTCTime "21:31:07"]
[WhiteElo "1375"]
[BlackElo "1381"]
[TimeControl "600"]
[Termination "hipposcottimus won by checkmate"]
[StartTime "21:31:07"]
[EndDate "2011.01.16"]
[EndTime "21:40:00"]
[Link "https://www.chess.com/game/live/88285229"]

1. e4 {[%clk 0:10:00]} 1... e5 {[%clk 0:10:00]} 2. Nf3 {[%clk 0:09:57]} 2... Nc6 {[%clk 0:09:55.1]} 3. Bb5 {[%clk 0:09:55.3]} 3... Nce7 {[%clk 0:09:24.5]} 4. Nxe5 {[%clk 0:09:46.6]} 4... c6 {[%clk 0:09:08.3]} 5. Bc4 {[%clk 0:09:43.4]} 5... d5 {[%clk 0:09:05.3]} 6. exd5 {[%clk 0:09:37.8]} 6... cxd5 {[%clk 0:09:03.3]} 7. Bb3 {[%clk 0:09:32.1]} 7... Nf6 {[%clk 0:08:38.4]} 8. Nf3 {[%clk 0:09:14]} 8... Nc6 {[%clk 0:07:58]} 9. Qe2+ {[%clk 0:08:54.6]} 9... Be7 {[%clk 0:07:47]} 10. O-O {[%clk 0:08:51.3]} 10... Bg4 {[%clk 0:07:26.6]} 11. d3 {[%clk 0:08:40.9]} 11... O-O {[%clk 0:07:23.6]} 12. h3 {[%clk 0:08:35.6]} 12... Nd4 {[%clk 0:07:20.5]} 13. Qe3 {[%clk 0:08:21.7]} 13... Nxf3+ {[%clk 0:07:15.7]} 14. gxf3 {[%clk 0:08:05]} 14... Bh5 {[%clk 0:07:08.8]} 15. Re1 {[%clk 0:07:40.4]} 15... Re8 {[%clk 0:06:46.3]} 16. Qd4 {[%clk 0:07:16.2]} 16... Rc8 {[%clk 0:06:04.8]} 17. Nc3 {[%clk 0:07:10.7]} 17... Bc5 {[%clk 0:05:20.5]} 18. Rxe8+ {[%clk 0:07:07.9]} 18... Qxe8 {[%clk 0:05:08.9]} 19. Qa4 {[%clk 0:06:30.5]} 19... Qe1+ {[%clk 0:05:01.3]} 20. Kg2 {[%clk 0:06:26.4]} 20... Qxf2+ {[%clk 0:05:00.2]} 21. Kh1 {[%clk 0:06:18.6]} 21... Bxf3# {[%clk 0:04:59]} 0-1

[Event "Live Chess"]
[Site "Chess.com"]
[Date "2011.01.16"]
[Round "-"]
[White "Doctor_Hapi"]
[Black "hipposcottimus"]
[Result "0-1"]
[CurrentPosition "6k1/6p1/8/6Q1/3P4/2P3P1/2r2q2/1rB1R1K1 w - -"]
[Timezone "UTC"]
[ECO "C23"]
[ECOUrl "https://www.chess.com/openings/Bishops-Opening-2...Nc6"]
[UTCDate "2011.01.16"]
[UTCTime "21:20:22"]
[WhiteElo "1257"]
[BlackElo "1373"]
[TimeControl "600"]
[Termination "hipposcottimus won by resignation"]
[StartTime "21:20:22"]
[EndDate "2011.01.16"]
[EndTime "21:28:49"]
[Link "https://www.chess.com/game/live/88282637"]

1. e4 {[%clk 0:10:00]} 1... e5 {[%clk 0:10:00]} 2. Bc4 {[%clk 0:09:58.5]} 2... Nc6 {[%clk 0:09:56.1]} 3. Bd5 {[%clk 0:09:55.5]} 3... Nb4 {[%clk 0:09:53.5]} 4. Bc4 {[%clk 0:09:51.4]} 4... d5 {[%clk 0:09:52.6]} 5. exd5 {[%clk 0:09:48.7]} 5... Nxd5 {[%clk 0:09:50]} 6. Nf3 {[%clk 0:09:46]} 6... e4 {[%clk 0:09:47.5]} 7. Nd4 {[%clk 0:09:39.1]} 7... c5 {[%clk 0:09:45.1]} 8. Bb5+ {[%clk 0:09:32.9]} 8... Bd7 {[%clk 0:09:39.5]} 9. Bxd7+ {[%clk 0:09:29.3]} 9... Qxd7 {[%clk 0:09:38.2]} 10. Nb3 {[%clk 0:09:24.1]} 10... c4 {[%clk 0:09:35.4]} 11. Na5 {[%clk 0:09:20.6]} 11... Nb6 {[%clk 0:09:27.7]} 12. Nc3 {[%clk 0:09:14.4]} 12... Bb4 {[%clk 0:09:22.2]} 13. Nxe4 {[%clk 0:09:12.1]} 13... Bxa5 {[%clk 0:09:20.6]} 14. c3 {[%clk 0:09:05.8]} 14... Qe6 {[%clk 0:09:19.5]} 15. Qf3 {[%clk 0:09:00.2]} 15... f5 {[%clk 0:09:16.8]} 16. Qe2 {[%clk 0:08:32.3]} 16... fxe4 {[%clk 0:09:14.9]} 17. b4 {[%clk 0:08:30.5]} 17... cxb3 {[%clk 0:09:11.6]} 18. axb3 {[%clk 0:08:25.7]} 18... Nd7 {[%clk 0:09:09.8]} 19. Rxa5 {[%clk 0:08:22.6]} 19... Ngf6 {[%clk 0:09:07.1]} 20. O-O {[%clk 0:08:19.3]} 20... O-O {[%clk 0:09:04.8]} 21. Re1 {[%clk 0:08:16.5]} 21... Qxb3 {[%clk 0:09:01.8]} 22. Ra3 {[%clk 0:08:04.3]} 22... Qe6 {[%clk 0:08:56.3]} 23. d4 {[%clk 0:07:51.9]} 23... Qd6 {[%clk 0:08:50.6]} 24. Qc4+ {[%clk 0:07:40.7]} 24... Kh8 {[%clk 0:08:45.6]} 25. Qb5 {[%clk 0:07:30.5]} 25... Ng4 {[%clk 0:08:37]} 26. g3 {[%clk 0:06:59.2]} 26... Rxf2 {[%clk 0:08:34.7]} 27. Qxb7 {[%clk 0:06:50.4]} 27... Rb8 {[%clk 0:08:25.9]} 28. Qxe4 {[%clk 0:06:44]} 28... Rxh2 {[%clk 0:08:19.4]} 29. Qxg4 {[%clk 0:06:39.4]} 29... h5 {[%clk 0:08:01.8]} 30. Qf3 {[%clk 0:06:09.8]} 30... Rc2 {[%clk 0:07:41.4]} 31. Qxh5+ {[%clk 0:06:00.7]} 31... Kg8 {[%clk 0:07:38.6]} 32. Rxa7 {[%clk 0:05:51.3]} 32... Rb1 {[%clk 0:07:32.7]} 33. Ra8+ {[%clk 0:05:46.5]} 33... Nf8 {[%clk 0:07:27.6]} 34. Rxf8+ {[%clk 0:05:26.4]} 34... Qxf8 {[%clk 0:07:13.3]} 35. Qg5 {[%clk 0:04:54.9]} 35... Qf2+ {[%clk 0:06:55.7]} 0-1

[Event "Live Chess"]
[Site "Chess.com"]
[Date "2011.01.16"]
[Round "-"]
[White "NileshShikhare"]
[Black "hipposcottimus"]
[Result "1-0"]
[CurrentPosition "3q1r1k/6pp/4N3/pp2np2/8/3nP1P1/PP1P1PBP/R1B2RK1 b - -"]
[Timezone "UTC"]
[ECO "A10"]
[ECOUrl "https://www.chess.com/openings/English-Opening-Anglo-Scandinavian-Defense-2.cxd5"]
[UTCDate "2011.01.16"]
[UTCTime "06:13:05"]
[WhiteElo "1362"]
[BlackElo "1367"]
[TimeControl "600"]
[Termination "NileshShikhare won - game abandoned"]
[StartTime "06:13:05"]
[EndDate "2011.01.16"]
[EndTime "06:18:19"]
[Link "https://www.chess.com/game/live/88069096"]

1. c4 {[%clk 0:10:00]} 1... d5 {[%clk 0:10:00]} 2. cxd5 {[%clk 0:09:57.1]} 2... c6 {[%clk 0:09:58]} 3. dxc6 {[%clk 0:09:54.1]} 3... Nxc6 {[%clk 0:09:56.8]} 4. Nc3 {[%clk 0:09:48.5]} 4... e5 {[%clk 0:09:56.4]} 5. Nf3 {[%clk 0:09:42]} 5... f5 {[%clk 0:09:52.7]} 6. Nxe5 {[%clk 0:09:38.9]} 6... Nxe5 {[%clk 0:09:50.9]} 7. g3 {[%clk 0:09:33.9]} 7... Nf6 {[%clk 0:09:46.6]} 8. Bg2 {[%clk 0:09:30.1]} 8... Bb4 {[%clk 0:09:28.9]} 9. Qa4+ {[%clk 0:09:25.3]} 9... Nfd7 {[%clk 0:09:12.8]} 10. Qxb4 {[%clk 0:09:21.8]} 10... a5 {[%clk 0:09:07.1]} 11. Qb5 {[%clk 0:09:12.6]} 11... O-O {[%clk 0:09:02.3]} 12. O-O {[%clk 0:08:59.4]} 12... b6 {[%clk 0:09:00.7]} 13. Bxa8 {[%clk 0:08:52.9]} 13... Nc5 {[%clk 0:08:49]} 14. e3 {[%clk 0:08:30.3]} 14... Ba6 {[%clk 0:08:35.6]} 15. Qxa6 {[%clk 0:08:01.1]} 15... Nxa6 {[%clk 0:08:31.8]} 16. Bd5+ {[%clk 0:07:53.4]} 16... Kh8 {[%clk 0:08:28.6]} 17. Bg2 {[%clk 0:07:45.4]} 17... Nc5 {[%clk 0:07:54.8]} 18. Nd5 {[%clk 0:07:37.6]} 18... b5 {[%clk 0:07:39.9]} 19. Nf4 {[%clk 0:07:33.4]} 19... Ncd3 {[%clk 0:07:29.4]} 20. Ne6 {[%clk 0:07:27.3]} 1-0

[Event "Live Chess"]
[Site "Chess.com"]
[Date "2011.01.15"]
[Round "-"]
[White "hipposcottimus"]
[Black "munkh221"]
[Result "1-0"]
[CurrentPosition "r1bk3r/pppnnB2/4N2p/4P1p1/8/4B3/PqP2KPP/RN1QR3 b - -"]
[Timezone "UTC"]
[ECO "C40"]
[ECOUrl "https://www.chess.com/openings/Kings-Pawn-Opening-Kings-Knight-Busch-Gass-Gambit"]
[UTCDate "2011.01.15"]
[UTCTime "05:46:22"]
[WhiteElo "1375"]
[BlackElo "1416"]
[TimeControl "300"]
[Termination "hipposcottimus won by checkmate"]
[StartTime "05:46:22"]
[EndDate "2011.01.15"]
[EndTime "05:49:58"]
[Link "https://www.chess.com/game/live/87729541"]

1. e4 {[%clk 0:05:00]} 1... e5 {[%clk 0:05:00]} 2. Nf3 {[%clk 0:04:57.5]} 2... Bc5 {[%clk 0:04:52.9]} 3. Bc4 {[%clk 0:04:54.6]} 3... h6 {[%clk 0:04:43.9]} 4. Nxe5 {[%clk 0:04:51.4]} 4... Bxf2+ {[%clk 0:04:41.6]} 5. Kxf2 {[%clk 0:04:44.5]} 5... Qf6+ {[%clk 0:04:39.2]} 6. Nf3 {[%clk 0:04:42.1]} 6... d6 {[%clk 0:04:33.7]} 7. d4 {[%clk 0:04:38.1]} 7... g5 {[%clk 0:04:31.3]} 8. e5 {[%clk 0:04:33.8]} 8... dxe5 {[%clk 0:04:28.2]} 9. dxe5 {[%clk 0:04:30.5]} 9... Qf5 {[%clk 0:04:21.6]} 10. Bd3 {[%clk 0:04:25.4]} 10... Qe6 {[%clk 0:04:16.3]} 11. Re1 {[%clk 0:04:14.2]} 11... Nd7 {[%clk 0:04:08]} 12. Nd4 {[%clk 0:04:11.5]} 12... Qb6 {[%clk 0:03:59]} 13. Bc4 {[%clk 0:03:54.3]} 13... Ne7 {[%clk 0:03:47.2]} 14. Bxf7+ {[%clk 0:03:38.6]} 14... Kd8 {[%clk 0:03:34.7]} 15. Be3 {[%clk 0:03:07.7]} 15... Qxb2 {[%clk 0:03:27.4]} 16. Ne6# {[%clk 0:03:04.9]} 1-0

[Event "Live Chess"]
[Site "Chess.com"]
[Date "2011.01.15"]
[Round "-"]
[White "hipposcottimus"]
[Black "jaybird76"]
[Result "1-0"]
[CurrentPosition "2R3k1/5pp1/pB1r3p/1p6/4B3/4P3/1P4PP/6K1 b - -"]
[Timezone "UTC"]
[ECO "C55"]
[ECOUrl "https://www.chess.com/openings/Italian-Game-Anti-Fried-Liver-Defense"]
[UTCDate "2011.01.15"]
[UTCTime "05:35:47"]
[WhiteElo "1366"]
[BlackElo "1294"]
[TimeControl "300+2"]
[Termination "hipposcottimus won by resignation"]
[StartTime "05:35:47"]
[EndDate "2011.01.15"]
[EndTime "05:44:44"]
[Link "https://www.chess.com/game/live/87727316"]

1. e4 {[%clk 0:05:00]} 1... e5 {[%clk 0:05:00]} 2. Nf3 {[%clk 0:04:59.4]} 2... Nc6 {[%clk 0:04:59.5]} 3. Bc4 {[%clk 0:05:00.2]} 3... h6 {[%clk 0:04:59]} 4. d4 {[%clk 0:04:59.1]} 4... Qe7 {[%clk 0:04:35.1]} 5. d5 {[%clk 0:04:50.4]} 5... Nb4 {[%clk 0:04:30.5]} 6. a3 {[%clk 0:04:42.6]} 6... Nf6 {[%clk 0:04:15.2]} 7. axb4 {[%clk 0:04:30.6]} 7... Qxb4+ {[%clk 0:04:15]} 8. Nfd2 {[%clk 0:04:13.9]} 8... Nxe4 {[%clk 0:04:12.4]} 9. Na3 {[%clk 0:04:04.5]} 9... Bc5 {[%clk 0:04:04.5]} 10. O-O {[%clk 0:04:01.9]} 10... Nxd2 {[%clk 0:03:53.6]} 11. Qxd2 {[%clk 0:03:56.3]} 11... Qxd2 {[%clk 0:03:53.2]} 12. Bxd2 {[%clk 0:03:54.7]} 12... O-O {[%clk 0:03:51.8]} 13. Nb5 {[%clk 0:03:53]} 13... Bb6 {[%clk 0:03:44.9]} 14. Be3 {[%clk 0:03:48.8]} 14... c5 {[%clk 0:03:34.4]} 15. dxc6 {[%clk 0:03:45.5]} 15... dxc6 {[%clk 0:03:30.7]} 16. Bxb6 {[%clk 0:03:44.6]} 16... cxb5 {[%clk 0:03:30.2]} 17. Bxb5 {[%clk 0:03:44.6]} 17... a6 {[%clk 0:03:28]} 18. Bc7 {[%clk 0:03:23.3]} 18... Bf5 {[%clk 0:03:24.7]} 19. Ba4 {[%clk 0:03:20.5]} 19... b5 {[%clk 0:03:21.3]} 20. Bb3 {[%clk 0:03:10.7]} 20... Rfc8 {[%clk 0:03:21.6]} 21. Bd5 {[%clk 0:02:58.2]} 21... Ra7 {[%clk 0:03:15.6]} 22. Bb6 {[%clk 0:02:54.6]} 22... Rd7 {[%clk 0:03:09.8]} 23. Rfd1 {[%clk 0:02:31.8]} 23... Bxc2 {[%clk 0:03:04]} 24. Rd2 {[%clk 0:02:26.6]} 24... e4 {[%clk 0:02:49.5]} 25. Rc1 {[%clk 0:02:06.7]} 25... e3 {[%clk 0:02:06.5]} 26. fxe3 {[%clk 0:02:01.4]} 26... Re7 {[%clk 0:01:45.9]} 27. Rdxc2 {[%clk 0:01:52.9]} 27... Rxc2 {[%clk 0:01:44.6]} 28. Rxc2 {[%clk 0:01:52.7]} 28... Rd7 {[%clk 0:01:38.7]} 29. Be4 {[%clk 0:01:51.1]} 29... Rd6 {[%clk 0:01:27]} 30. Rc8+ {[%clk 0:01:49.3]} 1-0

[Event "Live Chess"]
[Site "Chess.com"]
[Date "2011.01.15"]
[Round "-"]
[White "hipposcottimus"]
[Black "1Phatkid"]
[Result "1-0"]
[CurrentPosition "8/4bp2/3p2k1/1R1P4/3B2p1/8/P2NK1PP/1R6 b - -"]
[Timezone "UTC"]
[ECO "B07"]
[ECOUrl "https://www.chess.com/openings/Pirc-Defense-2.d4-c6-3.c4"]
[UTCDate "2011.01.15"]
[UTCTime "05:23:47"]
[WhiteElo "1366"]
[BlackElo "1085"]
[TimeControl "480"]
[Termination "hipposcottimus won by resignation"]
[StartTime "05:23:47"]
[EndDate "2011.01.15"]
[EndTime "05:32:54"]
[Link "https://www.chess.com/game/live/87724886"]

1. e4 {[%clk 0:08:00]} 1... d6 {[%clk 0:08:00]} 2. d4 {[%clk 0:07:48.4]} 2... c6 {[%clk 0:07:59.6]} 3. c4 {[%clk 0:07:45.1]} 3... b6 {[%clk 0:07:58.8]} 4. b4 {[%clk 0:07:42.1]} 4... a5 {[%clk 0:07:55.7]} 5. b5 {[%clk 0:07:32.5]} 5... Ra7 {[%clk 0:07:54.7]} 6. f4 {[%clk 0:07:28.2]} 6... Rd7 {[%clk 0:07:52.6]} 7. Nf3 {[%clk 0:07:26.8]} 7... d5 {[%clk 0:07:41.8]} 8. bxc6 {[%clk 0:07:26.3]} 8... Nxc6 {[%clk 0:07:37]} 9. cxd5 {[%clk 0:07:24.2]} 9... Nb4 {[%clk 0:07:26.8]} 10. Bb5 {[%clk 0:07:20.9]} 10... Qc7 {[%clk 0:06:59.1]} 11. Bxd7+ {[%clk 0:07:15]} 11... Bxd7 {[%clk 0:06:58.1]} 12. Na3 {[%clk 0:07:13.7]} 12... Nc2+ {[%clk 0:06:55.1]} 13. Nxc2 {[%clk 0:07:10.9]} 13... Ba4 {[%clk 0:06:53.2]} 14. d6 {[%clk 0:06:55.4]} 14... Qc3+ {[%clk 0:06:51.3]} 15. Bd2 {[%clk 0:06:51.8]} 15... Qd3 {[%clk 0:06:38.4]} 16. Rc1 {[%clk 0:06:46.8]} 16... Qxe4+ {[%clk 0:06:22.1]} 17. Qe2 {[%clk 0:06:39]} 17... Qxe2+ {[%clk 0:05:43.6]} 18. Kxe2 {[%clk 0:06:31.1]} 18... Bxc2 {[%clk 0:05:40.7]} 19. Rxc2 {[%clk 0:06:27.8]} 19... exd6 {[%clk 0:05:40.4]} 20. Re1 {[%clk 0:06:18.9]} 20... Ne7 {[%clk 0:05:38.4]} 21. Kf1 {[%clk 0:06:16.8]} 21... Kd7 {[%clk 0:05:29.3]} 22. Rb2 {[%clk 0:06:06.2]} 22... Nd5 {[%clk 0:05:22.3]} 23. Rb5 {[%clk 0:05:52.3]} 23... Kc6 {[%clk 0:05:17.2]} 24. Reb1 {[%clk 0:05:47.8]} 24... Be7 {[%clk 0:05:05.7]} 25. Be1 {[%clk 0:05:30.7]} 25... Ne3+ {[%clk 0:04:26.8]} 26. Ke2 {[%clk 0:05:19]} 26... Nc2 {[%clk 0:04:16.9]} 27. Rxb6+ {[%clk 0:05:08]} 27... Kd5 {[%clk 0:04:02.8]} 28. R6b5+ {[%clk 0:05:03.7]} 28... Ke6 {[%clk 0:04:01.1]} 29. f5+ {[%clk 0:04:57.4]} 29... Kf6 {[%clk 0:03:59.1]} 30. Bxa5 {[%clk 0:04:33.1]} 30... g5 {[%clk 0:03:38.5]} 31. fxg6 {[%clk 0:04:26.8]} 31... hxg6 {[%clk 0:03:25.2]} 32. d5 {[%clk 0:04:23.7]} 32... g5 {[%clk 0:03:24.1]} 33. Bc3+ {[%clk 0:04:19.5]} 33... Kg6 {[%clk 0:03:20]} 34. Bxh8 {[%clk 0:04:15.8]} 34... g4 {[%clk 0:03:14.1]} 35. Nd2 {[%clk 0:04:06.5]} 35... Nd4+ {[%clk 0:03:12.8]} 36. Bxd4 {[%clk 0:03:58.6]} 1-0